{"text_format":"1","workbook":"xlsx","n_sheets":3,"sheets":["s1","s 2 og 3","s 4"],"not_rendered":{"charts":0,"images":2,"macros":1,"external_links":0,"defined_names":2,"comments":0,"pivot_tables":0},"unopened":[],"bounds":{"document_bytes":16777216,"sheet_cells":100000,"rows_first":2000,"rows_last":500,"rows_between":2000,"halvings":0,"cell_chars":16384,"cell_head_chars":4096},"cells_cut":0,"cells_raw":0,"read":"whole","date_system":"1900"}

{"sheet":"s1","index":0,"n_rows":50,"n_cols":9,"rows_kept":50,"cut":false,"hidden":false,"merged":[[5,1,5,8],[47,7,47,8],[4,1,4,8],[10,3,10,4],[11,3,11,4],[14,3,14,4],[15,3,15,4],[11,7,11,8],[45,2,45,4],[42,1,42,4],[44,2,44,4],[42,5,42,6],[42,7,42,8],[43,5,43,6],[43,7,43,8],[44,5,44,8],[41,1,41,2],[41,3,41,4],[41,5,41,6],[41,7,41,8],[36,1,36,4],[36,6,36,8],[40,1,40,2],[40,3,40,4],[40,5,40,6],[40,7,40,8],[37,1,37,4],[37,6,37,8],[39,1,39,8],[35,3,35,4],[1,1,1,4],[12,2,12,6],[10,7,10,8],[10,1,15,1],[14,6,14,8],[15,6,15,8],[3,1,3,7],[6,1,6,8],[7,1,7,8],[8,1,8,8],[9,1,9,8],[13,2,13,6],[16,2,18,4],[22,1,22,2],[21,7,21,8],[21,3,21,4],[21,5,21,6],[17,5,18,8],[16,1,18,1],[16,5,16,8],[22,7,22,8],[19,1,19,8],[20,1,20,8],[21,1,21,2],[25,1,25,4],[22,3,22,4],[23,1,23,4],[23,6,23,8],[25,5,25,8],[24,6,24,8],[31,7,31,8],[31,2,31,6],[28,7,28,8],[22,5,22,6],[24,1,24,4],[28,1,28,4],[28,5,28,6],[30,2,30,6],[30,7,30,8],[29,2,29,8],[27,1,27,6],[26,5,26,8],[26,1,26,4],[49,4,49,6],[32,1,32,8],[38,1,38,8],[46,7,46,8],[47,2,47,6],[45,5,45,8],[46,2,46,6],[43,1,43,4],[33,1,33,8],[35,1,35,2],[35,5,35,6],[35,7,35,8],[34,1,34,2],[34,3,34,4],[34,5,34,6],[34,7,34,8]]}
[null,null,null,null,null,null,null,null,"Saksnr."]
[null,"Miljøsaneringsbeskrivelse "]
[]
[null,"Jf. Forskrift om sortering og innsamling av avfall, avfallsgebyrer og byggeavfall i Longyearbyen planområde, § 11. Kan benyttes for alle rehabiliterings-, rive- og vesentlige endringsarbeider ",null,null,null,null,null,null,"Veiledning og skjema kan lastes ned fra: www.sysselmesteren.no "]
[null,"Miljøkartlegging og miljøsanering (fjerningen av bygningsdeler med helse- og miljøfarlige stoffer) må utføres av personell med relevant utdanning og praksis."]
[null,"Dokumentasjon på at avfallet er levert godkjent avfallsmottak, skal legges ved sluttrapporten."]
[]
[null,"Versjon 16.11.2022"]
[]
[null,"Planen gjelder"]
[null,"Eiendom/ byggested","Gnr.","Bnr.",null,"Festnr. ","Seksjonsnr.","Kommune"]
[null,null,null,null,null,null,null,"Longyearbyen"]
[null,null,"Adresse",null,null,null,null,"Postnr.","Poststed"]
[null,null,null,null,null,null,null,null,"Longyearbyen"]
[null,null,"Byggeår","Rehab.år",null,"Berørt BRA","Type bygning (bolig/garasje/uthus/annet)"]
[]
[null,"Tiltaket gjelder:",null,null,null,"Kort tiltaksbeskrivelse (utfyllende opplysninger s. 4):"]
[]
[]
[]
[null,"Miljøkartlegging er gjennomført av"]
[null,"Firma",null,"Telefon (dagtid)",null,"Mobiltelefon",null,"Organisasjonsnummer"]
[]
[null,"Adresse",null,null,null,"Postnr.","Poststed"]
[]
[null,"Navn",null,null,null,"E-postadresse"]
[]
[null,"Kompetansen til den som har utført kartleggingen:"]
[null,"Gjennomført kurs i miljøkartlegging av bygninger:"]
[null,"Annen kompetanse (beskriv): Utfyllende opplysninger s. 4"]
[null,"Dato","Underskrift",null,null,null,null,"Gjentas med blokkbokstaver"]
[]
[]
[null,"Miljøsanering skal gjennomføres av (riveentreprenør)"]
[null,"Firma",null,"Telefon (dagtid)",null,"Mobiltelefon",null,"Organisasjonsnummer"]
[]
[null,"Adresse",null,null,null,"Postnr.","Poststed"]
[]
[]
[null,"Underskrift - tiltakshaver eller ansvarlig utførende"]
[null,"Foretak",null,"Telefon (dagtid)",null,"Mobiltelefon",null,"Organisasjonsnummer"]
[]
[null,"Adresse",null,null,null,"Postnummer",null,"Poststed"]
[]
[null,"E-postadresse","Telefaks",null,null,"Kontaktperson"]
[]
[null,"Dato","Underskrift",null,null,null,null,"Gjentas med blokkbokstaver"]
[]
[null,"Planen omfatterer ikke kartlegging/disponering av forurenset masse. Slik rapportering omfattes av eget regelverk"]
[null,null,null,null,null,null,null,null,"Side 1 av 3"]

{"sheet":"s 2 og 3","index":1,"n_rows":39,"n_cols":12,"rows_kept":39,"cut":false,"hidden":false,"merged":[[1,0,37,0],[1,1,1,11],[13,1,15,1],[2,4,2,7],[33,1,34,1],[33,3,34,3],[3,4,3,5],[23,2,24,2],[32,2,34,2],[32,11,34,11],[4,2,8,2],[9,11,10,11],[33,10,34,10],[38,1,38,3],[38,5,38,9],[38,10,38,11],[35,1,35,3],[20,2,22,2],[13,2,19,2],[33,9,34,9],[1,12,37,12],[2,9,2,10],[13,11,15,11],[17,11,19,11],[33,4,34,4],[33,5,34,5],[33,6,34,6],[33,7,34,7],[25,11,27,11],[4,11,8,11],[9,2,12,2]]}
[]
[null,"Detaljert fortegnelse over bygningsdeler/-installasjoner som kan inneholde helse- og miljøfarlige stoffer"]
[null,null,null,null,"PLAN",null,null,null,null,"SLUTTRAPPORT"]
[null,"Bygningsdel, bygnings-materiale eller bygnings-installasjon","Helse- eller miljøfarlig stoff","Vanlig plassering","Registrert mengde (div)",null,"Beregnet mengde (tonn)","Oppgi hvor i bygningen de miljøfarlige bygnings-materialene finnes. Bilde eller tegnet skisse av lokalisering vedlegges. Dokumentasjon på at avfallet er levert godkjent avfallsmottak, skal legges ved sluttrapporten.","Dokumentasjon av måling/ prøvetakning/ analyseresultater (vedlegg nr)","Faktisk mengde (tonn) ","    Avvik                  Differansen oppgis i tonn. Redegjør for vesentlige avvik i vedlegg.","Miljøsanering/Merknad"]
[null,"Bygningsplater inne","Asbest","Bak vedovner og badstuovner, på vegger og himling i fyrrom",null,"m2",null,null,null,null,{"$f":"J5-G5","v":0},"Skal utføres av godkjent asbestsaneringsfirma"]
[null,"Bygningsplater utv.",null,"Eternittplater på vegger og tak",null,"m2",null,null,null,null,0]
[null,"Rørisolasjon",null,"På rørbend i sentralvarmeanlegg, gjerne i selve fyrrommet",null,"stk.",null,null,null,null,0]
[null,"Ventilasjonskanaler",null,"Firkantede eternittkanaler",null,"m",null,null,null,null,0]
[null,"Gulvbelegg",null,"Vinylfliser",null,"m2",null,null,null,null,0]
[null,"Blyplater","Bly","Beslag ved pipe, takvinduer og på tak ",null,"kg",null,null,null,null,0,"Plukkes ned. Blyet legges i egen kasse"]
[null,"Blyglassvinduer ",null,"Kjellerstue, entré (gjerne farget glass)",null,"kg",null,null,null,null,0]
[null,"Batterier",null,"I garasjen",null,"stk.",null,null,null,null,0,"Leveres som EE-avfall"]
[null,"Avløpsrør og bunn-ledninger av støpejern",null,"Bly i rørskjøtene frem til ca. 1975",null,"stk. (rørskjøter)",null,null,null,null,0,"Rørskjøt slås i stykker og blyring plukkes ut og legges i egen kasse."]
[null,"Isolerglassvinduer ","PCB","Norskproduserte vinduer 1965-1975",null,"stk.",null,null,null,null,0,"Skriv \"PCB\" på glasset. Hele vinduet tas ut. Vinduet må ikke knuse. Vinduer skal stå under transport. Vær oppmerksom på at noen isolerglassvinduer kan inneholde bly"]
[null,null,null,"Utenlandske vinduer 1950-1980",null,"stk.",null,null,null,null,0]
[null,null,null,"Umerkede vinduer",null,"stk.",null,null,null,null,0]
[null,"Lysrørarmaturer fra 1950-1980",null,"Kjøkken, bad, hobbyrom, garasje. Over vinduer i stuer og soverom",null,"stk.",null,null,null,null,0,"Skrus ned. Leveres som EE-avfall"]
[null,"Fugemasser fra 1960-1978",null,"Utvendig mellom betong/tegl og tre/metall, rundt vinduer og dører",null,"m",null,null,null,null,0,"Skal utføres av spesialsaneringsfirma"]
[null,"Murpuss fra 1960-1972",null,"Der man antar at tilsetningsstoffet \"Borvibet\" kan ha vært anvendt i mørtelen må det tas ut materialprøve som sendes inn til kjemisk analyse",null,"m2",null,null,null,null,0]
[null,"Maling ",null,"For eksempel på utvendig mur og i våte soner (se PCB-veileder)",null,"m2",null,null,null,null,0]
[null,"Varmepumper","KFK / HKFK","På yttervegg",null,"stk.",null,null,null,null,0,"Varmepumper må saneres av kjøle-maskinist"]
[null,"Kjøleskap og frysere",null,"Kjøkken, kjellere, garasjer",null,"stk.",null,null,null,null,0,"Leveres som EE-avfall"]
[null,"Isolasjonsmaterialer",null,"Eldre \"styrofoamaktige\" isolasjonsplater (XPS; PU, PE, PF). Yttervegger/-tak eller innemurt i betong eller under kjellergulv. I garasjeporter. PUR-skum rundt dører og vinduer. ",null,"kg",null,null,null,null,0,"Plukkes ned, legges i plastsekker / egen container, leveres som farlig avfall"]
[null,"Termometre (blank søyle)","Kvikksølv","Utenfor vinduer, i badstuer",null,"stk.",null,null,null,null,0,"Leveres apotek eller avfalls-mottak"]
[null,"Lysrør og sparepærer, halogenpærer",null,"Kjøkken, bad, garasje, hobbyrom, ute-lys. Over vinduer i stuer og soverom",null,"stk.",null,null,null,null,0,"Leveres som EE-avfall (må ikke knuses)"]
[null,"Trykkimpregnert treverk","CCA","Terrasser, gjerder, utetrapper, vind-skier, lekter, ytterkledning i værharde strøk",null,"kg",null,null,null,null,0,"Rives og leveres som egen fraksjon \"impregnert trevirke\""]
[null,"Kreosotimpr. treverk (jernbanesviller/tele-fonstolper)","Kreosot (PAH)","Hagetrapper, hagemurer, telefonstolper",null,"kg",null,null,null,null,0]
[null,"Vinylbelegg, vinyllister","ftalater","gulvbelegg generelt + baderom",null,"kg",null,null,null,null,0]
[null,"Teglstein eller betong med PAH","PAH o.a.","I pipeløp som ikke er feiet nylig",null,"m3",null,null,null,null,0,"Leveres som farlig avfall"]
[null,"Elektriske og elektroniske installasjoner / apparater (EE-avfall)","Diverse","Lamper, panelovner, hvitevarer, brune-varer, elektriske apparater, veggvifter, avtrekksvifter, lysrør-armaturer, oljefyr, sikringsskap, stikkontakter, kabler, parafinløftere, dagtanker parafin, varmtvannsbereder",null,"kg",null,null,null,null,0,"Leveres som EE-avfall"]
[null,"Olje- og parafintanker","Petro-leum","Innvendige tanker i kjeller, eller utvendige nedgravde tanker.",null,"stk.",null,null,null,null,0,"Rengjort tank med sertifikat fra sanerings-firma kan leveres skraphandler som skrapjern"]
[null,"Maling, olje og kjemikalier","Olje m.m.","I spann, bokser og flasker i kjeller, hobbyrom og garasjer",null,"kg",null,null,null,null,0,"Leveres i originalemballasjen"]
[null,"Rørisolasjon av celle-gummi (frem til 2004)","Bromerte flamme-hemmere","På rør i kjeller og krypkjeller (celle-gummi har ofte grå eller svart farge)",null,"m",null,null,null,null,0,"Plukkes ned, legges i plastsekker, leveres som farlig avfall"]
[null,"Byggeskum (EPS,XPS)",null,"i tilknytning til murvegger,murgulv og rør",null,"m2",null,null,null,null,0]
[]
[null,"Andre forekomster (fyll inn selv):"]
[null,null,null,null,null,null,null,null,null,null,{"$f":"J37-G37","v":0}]
[null,"Sum:",null,null,null,null,{"$f":"SUM(G5:G37)","v":0},null,null,{"$f":"SUM(J5:J37)","v":0}]
[null,null,null,null,null,null,null,null,null,null,"Side 3 av 3"]

{"sheet":"s 4","index":2,"n_rows":24,"n_cols":6,"rows_kept":24,"cut":false,"hidden":false,"merged":[[24,1,40,5],[41,1,41,5],[19,1,19,5],[21,1,21,5],[22,1,22,5],[23,1,23,2],[23,3,23,4],[20,1,20,5],[17,1,17,2],[17,3,17,4],[18,1,18,2],[18,3,18,4],[11,1,11,2],[11,3,11,4],[12,1,12,2],[13,1,13,2],[14,1,14,2],[12,3,12,4],[13,3,13,4],[14,3,14,4],[16,1,16,2],[16,3,16,4],[15,1,15,2],[15,3,15,4],[10,1,10,2],[10,3,10,4],[9,1,9,2],[9,3,9,4],[8,1,8,2],[8,3,8,4],[7,1,7,2],[7,3,7,4],[6,1,6,2],[6,3,6,4],[5,1,5,2],[5,3,5,4],[4,1,4,2],[4,3,4,4],[3,1,3,2],[3,3,3,4],[0,1,0,5],[1,1,1,5],[2,1,2,2],[2,3,2,4]]}
[]
[null,"Oversikt over prøvetakning"]
[null,"Hva er prøvetatt ",null,"Resultater",null,"Vedlegg"]
[]
[]
[]
[]
[]
[]
[]
[]
[]
[]
[]
[]
[]
[]
[]
[]
[]
[null,"Dersom bygget er oppført eller renovert i perioden hvor det ble brukt PCB, eller det er usikkert om bygget kan inneholde asbest eller andre farlige stoffer, må det letes etter disse og prøvetas. Resultatene/ dokumentasjon føres opp i rubrikken ovenfor."]
[]
[null,"Annen informasjon"]
[null,"Fortsettelse fra s. 1"]